bitfinex/quotes_ETHUSD_20241123
["timestamp","ask_amount","ask_price","bid_price","bid_amount"]
[1732329425288,0.8309,3316.7,3314.9,0.8073]
[1732329425289,0.27766279,3316.5,3314.9,0.8073]
[1732329425499,0.27766279,3316.4,3314.9,0.8073]
[1732329425666,0.27766279,3316.3,3314.9,0.8073]
[1732329425859,0.27766279,3316.2,3314.9,0.8073]
[1732329426060,1.10816279,3316.1,3314.9,0.8073]
[1732329426356,0.82766279,3316.0,3314.9,0.8073]
[1732329426561,0.55,3315.8,3314.9,0.8073]
[1732329426861,0.55,3315.6,3314.9,0.8073]
[1732329427059,0.16581628,3315.9,3314.9,0.8073]
[1732329427060,0.55,3315.4,3314.9,0.8073]
[1732329427293,0.55,3315.2,3314.9,0.8073]
[1732329427804,0.27816605,3315.1,3314.9,0.8073]
[1732329428374,0.27816605,3315.0,3314.1,0.7555]
[1732329428570,0.27816605,3314.9,3314.1,0.7555]
[1732329428768,0.55,3314.7,3314.1,0.7555]
[1732329428970,0.27816605,3314.6,3314.1,0.7555]
[1732329429174,0.27816605,3314.5,3314.1,0.7555]
[1732329429417,0.27816605,3314.4,3314.1,0.7555]
[1732329429609,0.27816605,3314.3,3314.1,0.7555]
[1732329429767,0.27816605,3314.2,3314.1,0.7555]
[1732329430202,0.27816605,3314.5,3314.1,0.7555]
[1732329430403,0.27816605,3314.4,3314.0,0.599]
[1732329430614,0.27816605,3314.3,3314.0,0.599]
[1732329430763,0.27816605,3314.2,3314.0,0.599]
[1732329430959,0.27816605,3314.1,3314.0,0.599]
[1732329431498,0.27857849,3314.8,3314.1,0.7555]
[1732329431708,0.27857206,3314.7,3314.1,0.7555]
[1732329431869,0.82857206,3314.6,3314.1,0.7555]
[1732329432066,0.27857206,3314.5,3314.1,0.7555]
[1732329432393,0.27857206,3314.4,3314.1,0.7555]
[1732329432612,0.27857206,3315.3,3314.1,0.7555]
[1732329432768,0.55,3315.1,3314.1,0.7555]
[1732329432971,0.27857206,3315.0,3314.1,0.7555]
[1732329433170,0.27857206,3314.9,3314.1,0.7555]
[1732329433378,0.27857206,3314.8,3314.1,0.7555]
[1732329433607,0.27857206,3314.7,3314.1,0.7555]
[1732329433812,0.55,3315.3,3314.1,0.7555]
[1732329433985,0.27854964,3314.6,3314.1,0.7555]
[1732329434310,0.27854964,3314.5,3314.1,0.7555]
[1732329434513,0.27854964,3314.4,3314.1,0.7555]
[1732329434683,0.55,3315.3,3314.1,0.7555]
[1732329434684,0.27854964,3315.0,3314.1,0.7555]
[1732329434883,1.1494367,3315.3,3314.1,0.7555]
[1732329434884,0.55,3314.8,3314.1,0.7555]
[1732329435200,0.55,3314.6,3314.1,0.7555]
[1732329435381,0.27854964,3314.5,3314.1,0.7555]
[1732329435570,0.27854964,3314.4,3314.1,0.7555]
[1732329435775,0.27854964,3314.3,3314.1,0.7555]
[1732329435973,0.55,3314.6,3314.1,0.7555]
[1732329435974,0.27854964,3314.2,3314.1,0.7555]
[1732329436205,0.55,3314.6,3314.1,0.7555]
[1732329436206,0.27854964,3314.5,3314.1,0.7555]
[1732329436384,0.27854964,3314.4,3314.1,0.7555]
[1732329436584,0.27854964,3314.3,3314.1,0.7555]
[1732329436784,0.27854964,3314.2,3314.1,0.7555]
[1732329437204,0.27854964,3314.5,3314.1,0.7555]
[1732329437397,0.27854964,3314.4,3314.1,0.7555]
[1732329437586,0.27854964,3314.3,3314.1,0.7555]
[1732329437787,0.27854964,3314.2,3314.1,0.7555]
[1732329438334,0.27854964,3314.5,3314.1,0.7555]
[1732329438615,0.27854964,3315.3,3314.1,0.7555]
[1732329438817,0.27854964,3315.2,3314.1,0.7555]
[1732329439014,0.27854964,3315.1,3314.1,0.7555]
[1732329439315,0.27854964,3315.0,3314.1,0.7555]
[1732329439527,0.27854964,3314.9,3314.1,0.7555]
[1732329439745,0.27854964,3314.8,3314.1,0.7555]
[1732329440030,0.27854964,3314.7,3314.1,0.7555]
[1732329440222,0.27854964,3314.6,3314.1,0.7555]
[1732329440415,0.27854964,3314.5,3314.1,0.7555]
[1732329440593,0.27854964,3314.4,3314.1,0.7555]
[1732329440799,0.27854964,3314.3,3314.1,0.7555]
[1732329440994,0.55,3315.2,3314.1,0.7555]
[1732329441191,0.55,3315.0,3314.1,0.7555]
[1732329441417,0.27858654,3314.9,3314.1,0.7555]
[1732329441598,0.27858654,3314.8,3314.1,0.7555]
[1732329441947,0.27862259,3314.7,3314.1,0.7555]
[1732329442244,0.27862259,3314.6,3314.1,0.7555]
[1732329442541,0.27862259,3314.5,3314.1,0.7555]
[1732329442909,0.27862259,3314.4,3314.1,0.7555]
[1732329443096,0.27862259,3314.3,3314.1,0.7555]
[1732329443295,0.7709,3314.8,3314.1,0.7555]
[1732329443296,0.27862259,3314.2,3314.1,0.7555]
[1732329444104,0.27862259,3314.2,3314.0,0.599]
[1732329444305,0.7709,3314.8,3314.5,0.32037741]
[1732329444306,0.55,3314.7,3314.5,0.32037741]
[1732329447739,1.3209,3314.6,3314.5,1e-08]
[1732329448044,0.55,3314.3,3313.5,0.00302]
[1732329448201,0.55,3314.2,3313.5,0.00302]
[1732329448396,0.55,3314.0,3313.5,0.00302]
[1732329449103,0.01,3314.7,3313.5,0.00302]
[1732329449104,0.55,3313.8,3313.5,0.00302]
[1732329449302,0.7709,3313.7,3313.5,0.00302]
[1732329449604,0.55,3313.5,3312.2,0.7986]
[1732329449811,0.55,3313.3,3312.2,0.7986]
[1732329450637,0.01,3313.9,3311.6,0.7986]
[1732329450638,0.55,3313.1,3311.6,0.7986]
[1732329453617,0.8076,3313.0,3311.6,0.7986]
[1732329454046,0.55,3312.9,3311.6,0.7986]
[1732329454627,0.8076,3312.8,3311.6,0.7986]
[1732329454829,0.55,3312.7,3311.6,0.7986]
[1732329455740,0.8076,3312.6,3311.1,0.8326]
[1732329455953,0.55,3312.5,3311.1,0.8326]
[1732329456258,0.2765558,3312.4,3311.1,0.8326]
[1732329456459,0.55,3312.3,3311.1,0.8326]
[1732329456634,0.55,3312.1,3311.1,0.8326]
[1732329457321,0.8076,3312.2,3311.1,0.8326]
[1732329457519,0.55,3312.1,3311.1,0.8326]
[1732329457842,0.55,3311.9,3311.1,0.8326]
[1732329458043,0.27639396,3311.8,3311.1,0.8326]
[1732329458397,0.55,3311.9,3311.1,0.8326]
[1732329458664,0.55,3311.7,3311.0,0.1630448]
[1732329458956,0.55,3311.5,3311.0,0.1630448]
[1732329459159,0.55,3311.7,3311.0,0.1630448]
[1732329459521,0.55,3311.5,3311.0,0.1630448]
[1732329460028,0.55,3311.7,3311.0,0.1630448]
[1732329461257,0.55,3311.7,3311.0,0.9828448]
[1732329461761,0.55,3312.0,3311.0,0.9828448]
[1732329462748,0.74492144,3312.0,3311.0,0.9828448]
[1732329464948,0.8066,3311.9,3311.0,0.1630448]
[1732329465182,0.55,3311.8,3311.0,0.1630448]
[1732329465492,0.55,3311.6,3311.0,0.1630448]
[1732329466304,0.55,3311.4,3311.0,0.1630448]
[1732329468895,0.8066,3311.3,3311.0,0.1630448]
[1732329469107,0.55,3311.2,3311.0,0.1630448]
[1732329469455,0.55,3311.2,3311.0,0.136272]
[1732329471302,0.8066,3311.0,3310.8,0.09311311]
[1732329471601,0.01,3311.7,3310.8,0.09311311]
[1732329471602,1.79603895,3310.9,3310.8,0.09311311]
[1732329471801,1.63276268,3310.9,3310.8,0.09311311]
[1732329472101,0.8066,3310.8,3309.2,0.8198]
[1732329472305,0.8066,3310.8,3308.1,0.04021262]
[1732329472306,0.55,3310.3,3308.2,0.8198]
[1732329472601,0.55,3310.0,3308.4,0.8198]
[1732329472956,0.55,3310.0,3308.4,0.7198]
[1732329473361,0.55,3310.0,3308.2,0.3002]
[1732329473362,0.55,3310.0,3308.5,0.03022058]
[1732329473596,0.55,3310.0,3308.3,0.03022056]
[1732329473791,0.55,3310.0,3308.2,0.3002]
[1732329474308,0.55,3309.8,3308.2,0.33042178]
[1732329474497,0.55,3309.6,3307.7,0.03022177]
[1732329474704,0.55,3309.6,3308.1,0.03022459]
[1732329475208,0.55,3309.6,3307.6,3.3002]
[1732329475421,0.55,3309.6,3308.1,0.0302213]
[1732329476229,0.55,3309.6,3308.1,0.82782177]
[1732329476801,0.55,3309.6,3308.1,0.7976]
[1732329477132,0.8233,3309.5,3308.1,0.7976]
[1732329477318,0.59451186,3310.1,3308.1,0.7976]
[1732329477319,0.8233,3309.3,3308.1,0.7976]
[1732329477521,0.55,3309.2,3308.1,0.7976]
[1732329478031,0.792,3309.2,3308.1,0.7976]
[1732329478203,0.55,3309.1,3308.0,0.161969]
[1732329479309,0.55,3308.9,3308.0,0.161969]
[1732329479540,0.55,3308.7,3308.0,0.161969]
[1732329479817,0.55,3308.3,3308.0,0.161969]
[1732329480324,0.55,3308.1,3308.0,0.161969]
[1732329480522,0.301,3309.5,3308.0,0.161969]
[1732329480523,0.44106657,3309.9,3309.8,0.8053]
[1732329480697,0.01891843,3312.6,3310.7,0.7953]
[1732329480899,0.61347883,3312.1,3311.2,0.3002]
[1732329481120,0.61347883,3312.1,3311.4,0.3002]
[1732329481354,0.792,3314.7,3311.6,1.0955]
[1732329481624,0.276831,3314.6,3311.9,0.3002]
[1732329481925,0.276831,3314.6,3312.0,0.82548385]
[1732329482444,0.52528316,3314.5,3312.2,0.01]
[1732329482646,0.792,3314.7,3313.0,0.01]
[1732329482864,0.792,3315.7,3313.1,0.7953]
[1732329483163,0.27667038,3315.6,3313.3,0.7953]
[1732329483323,0.792,3315.7,3313.3,0.7953]
[1732329483324,0.792,3315.7,3313.4,0.04016837]
[1732329483521,1.14018334,3315.5,3313.4,0.03016837]
[1732329483937,0.36191109,3315.4,3313.4,0.02285171]
[1732329484621,0.36191109,3315.4,3313.3,0.7953]
[1732329484835,0.792,3315.3,3313.3,0.7953]
[1732329485873,0.55,3315.2,3313.3,0.7953]
[1732329486239,0.5,3315.2,3313.3,0.7953]
[1732329486840,0.792,3315.1,3313.3,0.7953]
[1732329487078,0.792,3315.1,3312.0,0.7953]
[1732329487287,0.802,3315.1,3312.0,0.7953]
[1732329487444,0.792,3314.9,3312.0,0.7953]
[1732329487645,0.01,3314.8,3312.0,0.7953]
[1732329487965,0.01,3315.1,3312.0,0.7953]
[1732329487966,0.792,3314.7,3312.1,0.03018711]
[1732329488371,0.55,3314.6,3312.1,0.03018711]
[1732329488883,0.55,3314.6,3312.2,0.7953]
[1732329489179,0.55,3314.6,3312.3,0.03018414]
[1732329489539,0.58872461,3315.1,3313.6,0.7953]
[1732329489744,0.792,3316.2,3313.7,0.82548305]
[1732329490056,0.792,3316.2,3313.7,0.03018305]
[1732329490257,0.792,3316.2,3310.3,5.99]
[1732329490258,0.792,3315.9,3313.4,0.7953]
[1732329490570,0.792,3315.9,3313.6,0.7953]
[1732329490874,0.792,3315.9,3313.7,0.03017162]
[1732329492047,0.792,3315.9,3313.8,0.7953]
[1732329492251,0.792,3315.9,3313.9,0.03016972]
[1732329492682,0.792,3315.9,3314.0,0.7953]
[1732329492985,0.792,3316.5,3314.1,0.82546697]
[1732329493340,0.55,3317.0,3314.4,3.0]
[1732329493558,1.3536,3317.0,3314.6,0.8205]
[1732329493753,1.3536,3317.0,3314.7,0.85066325]
[1732329494895,1.3536,3317.0,3314.7,0.8205]
[1732329495246,0.55,3316.9,3314.7,0.8205]
[1732329496572,1.3536,3317.0,3315.5,0.7767]
[1732329496573,0.55,3317.0,3315.5,0.7767]
[1732329496779,0.7774,3318.1,3315.7,0.7767]
[1732329496959,1.5541,3318.1,3316.0,0.7767]
[1732329497145,0.15541,3318.0,3316.2,0.7767]
[1732329497347,0.15541,3318.0,3316.3,0.80684624]
[1732329497580,1.978139,3318.6,3316.3,0.80684624]
[1732329499383,3.0,3319.0,3316.4,0.7813]
[1732329499384,0.8007,3319.0,3316.4,0.7813]
[1732329499593,0.8007,3319.0,3316.6,0.7713]
[1732329499760,0.8007,3319.0,3316.7,0.8014387]
[1732329500289,0.806847,3319.2,3316.7,0.8014387]
[1732329500461,0.01,3320.2,3316.9,0.7713]
[1732329500652,0.806847,3319.6,3317.1,0.7713]
[1732329500854,0.806847,3319.6,3317.3,0.7713]
[1732329501052,0.806847,3319.6,3317.4,0.80143467]
[1732329501354,0.8007,3320.1,3317.4,0.80143467]
[1732329501548,1.607547,3320.1,3317.4,0.80143467]
[1732329501793,0.1607547,3320.0,3317.4,0.80143467]
[1732329502002,0.1607547,3320.0,3317.5,0.01]
[1732329502184,0.1607547,3320.0,3317.7,0.7713]
[1732329502494,0.801435,3320.3,3317.8,0.80142841]
[1732329502656,0.8007,3320.9,3317.8,0.80142841]
[1732329503055,0.801428,3320.8,3317.8,0.80142841]
[1732329503254,0.1602128,3320.7,3317.8,0.80142841]
[1732329503796,0.55,3320.6,3317.8,0.80142841]
[1732329504854,0.1602128,3320.7,3317.8,0.80142841]
[1732329504855,0.1602128,3320.7,3318.4,0.7713]
[1732329505051,0.801428,3321.1,3318.5,0.81142198]
[1732329505355,0.8007,3321.4,3318.5,0.81142198]
[1732329505710,0.801428,3321.4,3318.8,0.7713]
[1732329505877,0.8007,3321.8,3318.9,0.81141672]
[1732329505878,0.60266444,3321.7,3318.9,0.81141672]
[1732329506055,0.8007,3322.2,3319.1,0.01]
[1732329506401,0.8007,3322.2,3319.2,0.7713]
[1732329506560,0.8007,3322.2,3319.3,0.8014146]
[1732329506757,0.7713,3321.8,3319.3,0.8014146]
[1732329506982,0.7713,3321.8,3319.4,0.7713]
[1732329507588,0.8007,3321.7,3319.4,0.7713]
[1732329507789,0.1572,3321.6,3319.4,0.7713]
[1732329508106,0.55,3321.2,3319.4,0.7713]
[1732329509115,0.1572,3321.6,3319.4,0.7713]
[1732329509116,0.55,3321.5,3319.4,0.7713]
[1732329509325,0.1572,3321.6,3319.4,0.7713]
[1732329509609,0.1572,3321.6,3319.5,0.7713]
[1732329510516,0.55,3321.5,3319.5,0.7713]
[1732329511608,0.55,3321.5,3317.1,0.01]
[1732329511609,0.57,3321.1,3317.1,0.7713]
[1732329511821,0.55,3320.9,3317.3,0.7713]
[1732329511987,0.55,3320.9,3317.5,0.7713]
[1732329512316,0.8007,3320.6,3317.7,0.7713]
[1732329512481,0.55,3320.5,3317.9,0.7713]
[1732329514128,0.55,3320.5,3318.1,0.7914]
[1732329514948,0.55,3320.5,3317.2,0.7914]
[1732329515097,0.55,3320.5,3317.4,0.7914]
[1732329515406,0.55,3320.5,3317.6,0.7914]
[1732329515613,0.55,3320.5,3317.8,0.7914]
[1732329515810,0.55,3320.5,3317.9,0.82153216]
[1732329516017,1.13627781,3320.5,3317.9,0.7914]
[1732329516200,0.55,3320.5,3317.9,0.7914]
[1732329516637,0.55,3320.3,3317.9,0.7914]
[1732329516998,0.8056,3320.1,3317.9,0.7914]
[1732329517302,0.55,3320.0,3317.9,0.7914]
[1732329518208,0.57,3320.0,3317.9,0.7914]
[1732329518422,0.56,3319.8,3317.9,0.7914]
[1732329518815,0.7615,3319.5,3317.9,0.7914]
[1732329519011,0.55,3319.4,3317.9,0.7914]
[1732329519207,0.7615,3319.3,3317.1,0.7935]
[1732329519413,0.55,3319.0,3317.1,0.7935]
[1732329521549,0.7615,3319.1,3317.1,0.7935]
[1732329521704,0.7615,3319.7,3316.3,0.7935]
[1732329521902,0.7615,3319.7,3316.6,1.0937]
[1732329522137,0.7615,3320.2,3317.1,0.7935]
[1732329522353,0.7615,3320.2,3317.3,0.7935]
[1732329522508,0.7615,3320.2,3317.2,0.03013563]
[1732329522509,0.7615,3320.2,3317.4,0.82363563]
[1732329523057,1.34709936,3320.2,3317.4,0.82363563]
[1732329525038,0.18970994,3320.0,3317.7,0.82363538]
[1732329525217,0.58559936,3320.2,3317.7,0.82363538]
[1732329525418,0.7615,3320.6,3317.7,0.82363538]
[1732329525822,0.7615,3321.0,3317.8,0.3002]
[1732329526021,0.7615,3321.0,3318.0,0.7935]
[1732329526217,0.7615,3321.0,3318.2,0.7935]
[1732329526547,1.00024378,3321.1,3318.4,0.7935]
[1732329526718,0.7615,3321.4,3318.6,0.7935]
[1732329526981,0.7615,3321.4,3318.7,0.82362416]
[1732329527144,0.31572,3321.5,3318.7,0.82362416]
[1732329527145,0.92048638,3321.5,3318.7,0.82362416]
[1732329527360,0.31572,3321.5,3318.7,0.82362416]
[1732329529759,0.55,3321.4,3318.7,0.82362416]
[1732329531229,0.55,3321.2,3318.7,0.7935]
[1732329532386,0.31572,3321.5,3318.9,0.7935]
[1732329532532,0.31572,3321.5,3318.1,0.7935]
[1732329532872,0.31572,3321.5,3318.0,0.3002]
[1732329532873,0.92971458,3321.5,3318.3,0.7935]
[1732329533028,0.31572,3321.5,3318.5,0.7935]
[1732329533356,0.31572,3321.5,3318.7,0.7935]
[1732329533554,0.55,3321.4,3318.7,0.7935]
[1732329533739,0.55,3321.4,3317.9,0.01]
[1732329533740,0.55,3321.4,3318.9,0.8256]
[1732329536934,0.55,3321.4,3319.0,1.1258]
[1732329537136,0.55,3321.4,3319.4,0.3002]
[1732329537375,0.8301,3321.3,3319.5,0.8256]
[1732329537581,0.55,3321.2,3319.5,0.8256]
[1732329538097,3.55,3321.0,3319.5,0.8256]
[1732329538299,6.707,3321.0,3319.5,0.8256]
[1732329538612,0.7609,3320.7,3319.5,0.8256]
[1732329538892,0.55,3320.6,3319.5,0.8256]
[1732329539206,0.55,3320.6,3317.9,0.03012884]
[1732329539367,0.55,3320.6,3317.9,0.3002]
[1732329540280,0.55,3320.6,3316.8,0.03013399]
[1732329541261,3.55,3320.6,3317.2,0.3002]
[1732329541452,3.55,3320.6,3317.4,0.3002]
[1732329541648,0.55,3320.6,3317.5,0.03013643]
[1732329541952,0.55,3320.6,3317.7,0.3002]
[1732329542152,0.55,3320.6,3318.0,0.8085]
[1732329542153,0.55,3320.4,3318.0,0.8085]
[1732329542599,0.55,3320.4,3318.2,0.8085]
[1732329545074,0.55,3320.2,3318.2,0.8085]
[1732329545276,0.55,3320.0,3318.2,0.8085]
[1732329545476,0.55,3319.8,3318.2,0.8085]
[1732329545919,0.55,3319.6,3318.2,0.8085]
[1732329546128,0.55,3319.4,3318.2,0.8085]
[1732329546289,0.2784632,3319.3,3318.2,0.8085]
[1732329546621,0.8284632,3319.2,3318.2,0.8085]
[1732329546777,0.55,3319.0,3318.2,0.8085]
[1732329546970,0.55,3318.8,3318.2,0.8085]
[1732329547301,0.55,3318.6,3318.2,0.8085]
[1732329547502,0.55,3318.4,3318.2,0.8085]
[1732329547809,0.2784632,3318.3,3318.2,0.8085]
[1732329548011,0.55,3318.4,3318.2,0.8085]
[1732329548219,0.2784632,3318.3,3318.2,0.8085]
[1732329548591,0.55,3318.4,3318.2,0.8085]
[1732329548816,0.2784632,3318.3,3318.2,0.8085]
[1732329549235,0.55,3318.4,3318.2,0.8085]
[1732329549407,0.82834906,3318.3,3318.2,0.8085]
[1732329550239,0.82834906,3318.3,3316.2,0.3002]
[1732329550240,0.55,3318.2,3316.6,0.8085]
[1732329550550,0.55,3318.0,3316.6,0.8085]
[1732329550754,0.55,3317.8,3316.6,0.8085]
[1732329551463,0.7609,3318.2,3316.6,0.8085]
[1732329551464,0.55,3318.1,3316.6,0.8085]
[1732329552129,0.55,3317.9,3316.6,0.8085]
[1732329552311,0.55,3317.7,3316.6,0.8085]
[1732329552521,0.55,3317.5,3316.6,0.8085]
[1732329552828,0.55,3317.3,3316.2,0.8085]
[1732329553042,0.55,3317.1,3316.2,0.8085]
[1732329553228,0.55,3316.9,3316.2,0.8085]
[1732329553426,0.55,3316.7,3316.2,0.8085]
[1732329553675,0.27789761,3316.6,3316.2,0.8085]
[1732329553959,0.82789761,3316.5,3316.2,0.8085]
[1732329554478,0.55,3316.3,3316.2,0.8085]
[1732329554622,0.82789761,3316.3,3316.2,0.8085]
[1732329555044,0.27789761,3316.3,3316.2,0.8085]
[1732329555224,0.52322309,3317.4,3316.2,0.8085]
[1732329555425,0.27702227,3317.3,3316.2,0.8085]
[1732329555624,0.7652,3318.1,3316.2,0.8085]
[1732329555625,0.27702227,3317.2,3316.2,0.8085]
[1732329555864,0.27702227,3317.1,3316.2,0.8085]
[1732329556224,0.27702227,3317.0,3316.2,0.8085]
[1732329556430,1.28033936,3318.1,3316.2,0.8085]
[1732329556431,0.27702227,3316.9,3316.2,0.8085]
[1732329556748,0.55,3316.7,3316.2,0.8085]
[1732329557529,1.28033936,3318.1,3316.2,0.8085]
[1732329557730,0.27686446,3318.0,3316.2,0.8085]
[1732329558023,0.15572038,3317.9,3316.2,0.8085]
[1732329558241,0.27686446,3317.8,3316.2,0.8085]
[1732329559244,0.55,3317.7,3316.2,0.8085]
[1732329559438,0.55,3317.5,3316.2,0.8085]
[1732329559647,0.55,3317.3,3316.2,0.8085]
[1732329559857,0.27686446,3317.2,3316.2,0.8085]
[1732329560068,0.55,3317.1,3316.2,0.8085]
[1732329560235,0.55,3316.9,3316.2,0.8085]
[1732329560588,0.15572038,3317.9,3316.2,0.8085]
[1732329560589,0.55,3316.7,3316.2,0.8085]
[1732329560749,0.55,3316.5,3316.2,0.8085]
[1732329560941,0.55,3316.3,3316.2,0.8085]
[1732329561180,0.82686446,3316.3,3316.2,0.8085]
[1732329561657,0.82686446,3316.3,3314.1,0.8082]
[1732329561658,0.55,3316.2,3314.1,0.8082]
[1732329561836,0.7522,3317.3,3314.3,0.8082]
[1732329561837,0.55,3316.0,3314.3,0.8082]
[1732329562038,0.55,3316.0,3314.8,0.3002]
[1732329562260,0.55,3316.0,3315.0,0.3002]
[1732329562489,0.55,3316.0,3315.3,0.8082]
[1732329562887,0.55,3315.8,3315.3,0.8082]
[1732329564282,0.8082,3315.9,3315.3,0.8082]
[1732329564862,0.7522,3317.3,3315.3,0.8082]
[1732329565098,0.55,3316.5,3315.3,0.8082]
[1732329565251,0.27675642,3316.4,3315.3,0.8082]
[1732329565808,0.55,3316.3,3315.3,0.8082]
[1732329566086,0.27675642,3316.2,3315.3,0.8082]
[1732329566246,0.55,3316.5,3315.3,0.8082]
[1732329566247,0.27675642,3316.1,3315.3,0.8082]
[1732329566446,0.55,3316.0,3315.3,0.8082]
[1732329567183,0.27705449,3315.9,3315.3,0.8082]
[1732329567398,0.55,3315.8,3315.3,0.8082]
[1732329567748,0.55,3316.0,3315.3,0.8082]
[1732329567783,0.55,3315.8,3314.9,0.8082]
[1732329567980,0.55,3315.6,3314.9,0.8082]
[1732329568168,0.55,3315.4,3314.9,0.8082]
[1732329568372,0.55,3315.2,3314.9,0.8082]
[1732329568677,0.55,3315.0,3314.9,0.8082]
[1732329568875,0.82699657,3315.0,3314.9,0.8082]
[1732329569383,0.82699657,3315.0,3314.5,0.8082]
[1732329569692,0.55,3314.8,3314.5,0.8082]
[1732329571804,0.55,3315.1,3314.5,0.8082]
[1732329572001,0.55,3314.9,3314.5,0.8082]
[1732329572312,0.55,3314.7,3314.5,0.8082]
[1732329573008,0.55,3314.7,3314.3,0.8082]
[1732329573367,0.55,3314.5,3314.3,0.8082]
[1732329573791,0.55,3314.5,3312.5,0.7576]
[1732329574005,0.27667883,3314.4,3312.7,0.7576]
[1732329574277,0.55,3314.3,3312.7,0.7576]
[1732329574608,0.55,3314.3,3312.3,0.3002]
[1732329574609,0.55,3314.3,3312.8,0.03018404]
[1732329574810,0.55,3314.3,3312.9,0.7576]
[1732329579886,0.55,3314.1,3312.9,0.7576]
[1732329580514,0.55,3314.7,3313.0,0.84488313]
[1732329580823,0.27717924,3314.6,3313.0,0.84488313]
[1732329580999,0.8239,3315.1,3313.0,0.84488313]
[1732329581317,0.27715054,3315.0,3313.0,0.84488313]
[1732329581881,0.27715054,3315.0,3313.1,0.3002]
[1732329582188,0.8239,3315.6,3313.3,0.8147]
[1732329582390,0.27723588,3315.5,3313.5,0.8147]
[1732329582601,0.27723588,3315.5,3313.7,0.8147]
[1732329583016,0.16348027,3315.4,3313.7,0.8147]
[1732329583214,0.55,3315.2,3313.7,0.8147]
[1732329583596,0.55,3315.0,3313.7,0.8147]
[1732329583791,0.27723588,3314.9,3313.7,0.8147]
[1732329584074,1.3739,3314.8,3313.7,0.8147]
[1732329584198,0.55,3314.6,3313.7,0.8147]
[1732329584398,0.27723588,3314.5,3313.7,0.8147]
[1732329584815,0.55,3314.4,3313.7,0.8147]
[1732329585026,0.55,3314.2,3313.7,0.8147]
[1732329585730,0.55,3314.4,3313.7,0.8147]
[1732329586046,0.52976519,3314.5,3313.7,0.8147]
[1732329586047,0.55,3314.2,3313.7,0.8147]
[1732329586279,1.08537005,3314.7,3313.7,0.8147]
[1732329586439,0.55,3314.5,3313.7,0.8147]
[1732329586736,0.55,3314.3,3313.7,0.8147]
[1732329587098,0.55,3314.5,3313.7,0.8147]
[1732329587328,0.55,3314.1,3313.7,0.8147]
[1732329588052,0.55,3314.1,3312.3,0.8147]
[1732329588202,0.55,3313.9,3312.5,0.8147]
[1732329588398,0.55,3314.1,3312.5,0.8147]
[1732329588602,0.27748601,3314.0,3312.6,0.84488359]
[1732329588912,0.55,3314.1,3312.6,0.84488359]
[1732329589737,0.190927,3314.6,3312.6,0.84488359]
[1732329590053,0.27765937,3314.5,3312.6,0.84488359]
[1732329590332,0.27765937,3314.4,3312.7,0.8147]
[1732329590510,0.27765937,3314.3,3312.9,0.8147]
[1732329590719,0.8239,3315.2,3312.9,0.8147]
[1732329590899,0.27777206,3315.1,3312.9,0.8147]
[1732329591534,0.55,3315.0,3312.9,0.84487833]
[1732329591746,0.55,3314.8,3312.9,0.84487833]
[1732329592034,0.55,3314.6,3313.2,0.3002]
[1732329592205,0.55,3314.4,3313.4,0.3002]
[1732329592535,0.27777206,3314.3,3313.4,0.3002]
[1732329593335,0.55,3314.2,3313.4,0.3002]
[1732329593533,0.55,3314.0,3313.4,0.3002]
[1732329593701,0.27777206,3313.9,3313.4,0.3002]
[1732329594791,0.27777206,3313.9,3312.4,0.3002]
[1732329595008,0.55,3314.9,3313.0,0.3002]
[1732329595156,0.27826832,3314.8,3313.3,0.7553]
[1732329595354,0.82826832,3314.7,3313.5,1.0555]
[1732329595563,0.27826832,3314.6,3313.5,1.0555]
[1732329595778,0.55,3314.5,3313.5,1.0555]
[1732329595998,0.27826832,3314.4,3313.5,1.0555]
[1732329596213,0.27826832,3314.6,3313.5,1.0555]
[1732329596499,0.55,3314.4,3313.5,1.0555]
[1732329596799,0.27826832,3314.3,3313.5,1.0555]
[1732329596967,0.27826832,3314.3,3313.5,0.7553]
[1732329598166,0.15826832,3314.2,3313.5,0.7553]
[1732329598365,0.55,3314.5,3313.5,0.7553]
[1732329599770,0.53883229,3314.6,3313.5,0.7553]
[1732329599971,0.7947,3315.1,3313.5,0.7553]
[1732329600799,1.32792607,3315.1,3313.5,0.7553]
[1732329601340,0.55,3315.0,3313.5,0.7553]
[1732329601474,0.55,3314.8,3313.5,0.7553]
[1732329601680,0.55,3314.8,3312.7,0.3002]
[1732329601893,0.53322607,3315.1,3313.3,0.3002]
[1732329602120,0.7817,3315.8,3313.8,0.7561]
[1732329602620,0.7817,3315.7,3313.8,0.7561]
[1732329603209,0.7817,3315.3,3313.8,0.7561]
[1732329603364,0.55,3315.6,3313.8,0.7561]
[1732329603365,0.55,3315.4,3313.8,0.7561]
[1732329603567,0.55,3315.2,3313.8,0.7561]
[1732329603812,0.7817,3315.1,3313.8,0.7561]
[1732329604101,0.55,3315.0,3313.8,0.7561]
[1732329605002,0.55,3315.0,3312.6,0.3002]
[1732329605220,0.7817,3315.1,3312.6,0.3002]
[1732329605221,0.55,3314.8,3312.7,0.7561]
[1732329605422,0.53269878,3315.1,3312.7,0.7561]
[1732329605423,0.55,3314.6,3312.7,0.7561]
[1732329605640,0.7817,3314.5,3312.7,0.7561]
[1732329605801,0.55,3314.4,3312.7,0.7561]
[1732329606521,0.34527119,3315.2,3312.7,0.7561]